fUSD/lending_fUSD_20250407
["ID","MTS","AMOUNT","RATE_DAILY","PERIOD"]
[357335645,1744008632444,-172.68,0.00040104,2]
[357335646,1744008632458,-157.47,0.00040236,2]
[357335647,1744008632471,-1879.167619,0.000407,34]
[357335648,1744008632485,-99.19260374,0.00041,14]
[357335687,1744008637625,-84.80739626,0.00041,14]
[357335688,1744008637637,-290.65260374,0.00041,120]
[357335689,1744008637651,-377.0,0.00041,120]
[357335690,1744008637664,-576.90097949,0.00041,120]
[357335691,1744008637676,-167.15289676,0.00041096,2]
[357335692,1744008637687,-594.24622375,0.00041096,6]
[357335693,1744008637708,-405.75377625,0.00041096,6]
[357335694,1744008637722,-591.0,0.00041184,5]
[357335695,1744008637734,-877.25181213,0.00041233,20]
[357335696,1744008637832,-122.74818787,0.00041233,20]
[357335697,1744008637844,-1000.0,0.0004137,20]
[357335698,1744008637855,-1000.0,0.00041507,20]
[357335699,1744008637866,-170.4,0.00041631,2]
[357335700,1744008637876,-249.77,0.00042,120]
[357335701,1744008637887,-363.49,0.00042,120]
[357335702,1744008637898,-3241.94,0.00042,120]
[357335703,1744008637909,-434.89,0.00042,120]
[357335704,1744008637920,-1953.26181213,0.00042,120]
[357335705,1744008637988,-20546.73818787,0.00042,120]
[357335706,1744008638000,-1092.73,0.00042,120]
[357335707,1744008638011,-1336.86,0.00042,120]
[357335708,1744008638022,-430.88206983,0.00042223,31]
[357335709,1744008638033,-228.67697072,0.00042223,31]
[357335710,1744008638049,-500.0,0.00042223,31]
[357335711,1744008638061,-22500.0,0.00042225,120]
[357335712,1744008638078,-22500.0,0.0004245,120]
[357335713,1744008638090,-2000.0,0.0004245,13]
[357335714,1744008638102,-1629.0,0.0004245,13]
[357335715,1744008638114,-22500.0,0.00042675,120]
[357335716,1744008638140,-169.11,0.00042688,2]
[357335717,1744008638156,-289.98355149,0.00042783,10]
[357335718,1744008638169,-631.3949614,0.00042783,2]
[357335719,1744008638182,-215.72,0.0004289,30]
[357335720,1744008638195,-22500.0,0.000429,120]
[357335721,1744008638208,-4301.86758864,0.00043015,15]
[357335722,1744008638225,-22500.0,0.00043125,120]
[357335723,1744008638239,-184.0,0.00043151,90]
[357335724,1744008638252,-300.0,0.00043171,6]
[357335725,1744008638266,-213.0,0.0004335,2]
[357335726,1744008638280,-3438.00703194,0.0004335,120]
[357335727,1744008638296,-19061.99296806,0.0004335,120]
[357335728,1744008638309,-362.0,0.00043425,60]
[357335729,1744008638321,-306.51466448,0.00043562,120]
[357335730,1744008638333,-7686.47,0.00043575,120]
[357335731,1744008638345,-307.82,0.00044158,120]
[357335732,1744008638357,-196.1,0.00044239,2]
[357335733,1744008638369,-1273.95,0.00044371,120]
[357335734,1744008638381,-150.0,0.00044389,120]
[357335735,1744008638394,-151.0,0.00045,120]
[357335736,1744008638405,-151.0,0.00045,120]
[357335737,1744008638417,-185.0,0.00045308,90]
[357335738,1744008638429,-168.05,0.00045354,2]
[357335739,1744008638442,-150.0,0.00045589,10]
[357335740,1744008638454,-150.0,0.00045759,120]
[357335741,1744008638470,-150.0,0.00047129,120]
[357335742,1744008638481,-2056.69,0.000478,42]
[357335743,1744008638493,-2056.69,0.000478,42]
[357335744,1744008638504,-2056.69,0.000478,42]
[357335745,1744008638514,-2056.69,0.000478,42]
[357335746,1744008638524,-2056.69,0.000478,42]
[357335747,1744008638534,-2056.69,0.000478,42]
[357335748,1744008638544,-2056.69,0.000478,42]
[357335749,1744008638553,-2056.69,0.000478,42]
[357335750,1744008638563,-2056.69,0.000478,42]
[357335751,1744008638572,-2056.69,0.000478,42]
[357335752,1744008638582,-2056.69,0.000478,42]
[357335753,1744008638591,-2056.69,0.000478,42]
[357335774,1744008638932,-150.0,0.00048499,120]
[357335778,1744008638958,-307.82,0.00048636,120]
[357335781,1744008638987,-500.0,0.00048773,10]
[357335784,1744008639003,-6333.51151089,0.0004879,2]
[357335786,1744008639013,-3116.44970525,0.000488,120]
[357335788,1744008639024,-29072.71249676,0.000488,120]
[357335790,1744008639034,-207.0,0.00049,120]
[357335791,1744008639045,-1273.95,0.00049301,120]
[357335793,1744008639055,-9618.95044026,0.00049305,4]
[357335795,1744008639066,-500.0,0.00049314,31]
[357335796,1744008639078,-549.82826298,0.00049314,120]
[357335798,1744008639089,-500.0,0.00049314,120]
[357335800,1744008639100,-529.84823158,0.00049314,120]
[357335802,1744008639110,-500.0,0.00049314,120]
[357335804,1744008639120,-500.0,0.00049314,120]
[357335806,1744008639130,-227.8497837,0.00049314,31]
[357335808,1744008639140,-500.0,0.00049314,120]
[357335810,1744008639151,-500.0,0.00049314,120]
[357335812,1744008639160,-500.0,0.00049314,120]
[357335814,1744008639170,-500.0,0.00049314,120]
[357335816,1744008639181,-500.0,0.00049314,120]
[357335818,1744008639190,-500.0,0.00049314,120]
[357335820,1744008639200,-500.0,0.00049314,120]
[357335822,1744008639215,-500.0,0.00049314,31]
[357335824,1744008639226,-500.0,0.00049314,120]
[357335825,1744008639235,-500.0,0.00049314,31]
[357335827,1744008639245,-500.0,0.00049314,120]
[357335829,1744008639255,-392.22501068,0.00049314,120]
[357335831,1744008639265,-500.0,0.00049314,120]
[357335833,1744008639275,-500.0,0.00049314,120]
[357335835,1744008639285,-500.0,0.00049314,120]
[357335837,1744008639294,-500.0,0.00049314,120]
[357335839,1744008639304,-500.0,0.00049314,120]
[357335841,1744008639314,-500.0,0.00049314,120]
[357335843,1744008639323,-500.0,0.00049314,120]
[357335845,1744008639333,-500.0,0.00049314,120]
[357335847,1744008639343,-500.0,0.00049314,120]
[357335849,1744008639353,-500.0,0.00049314,120]
[357335851,1744008639363,-500.0,0.00049314,120]
[357335853,1744008639374,-628.5925255,0.00049314,120]
[357335855,1744008639384,-500.0,0.00049314,120]
[357335857,1744008639395,-500.0,0.00049314,120]
[357335859,1744008639405,-500.0,0.00049314,120]
[357335861,1744008639414,-934.76713625,0.00049314,120]
[357335863,1744008639424,-646.71855157,0.00049314,120]
[357335865,1744008639434,-646.71855157,0.00049314,120]
[357335867,1744008639444,-646.71855157,0.00049314,120]
[357335869,1744008639455,-646.71855157,0.00049314,120]
[357335871,1744008639470,-646.71855157,0.00049314,120]
[357335872,1744008639480,-934.76713625,0.00049314,120]
[357335875,1744008639491,-646.71855157,0.00049314,120]
[357335877,1744008639501,-646.71855157,0.00049314,120]
[357335879,1744008639511,-646.71855157,0.00049314,120]
[357335881,1744008639521,-646.71855157,0.00049314,120]
[357335884,1744008639534,-646.71855157,0.00049314,120]
[357335886,1744008639545,-646.71855157,0.00049314,120]
[357335888,1744008639555,-646.71855157,0.00049314,120]
[357335890,1744008639565,-957.33048092,0.00049314,120]
[357335892,1744008639575,-957.33048092,0.00049314,120]
[357335894,1744008639586,-957.33048092,0.00049314,120]
[357335896,1744008639596,-957.33048092,0.00049314,120]
[357335898,1744008639606,-957.33048092,0.00049314,120]
[357335900,1744008639616,-957.33048092,0.00049314,120]
[357335902,1744008639626,-957.33048092,0.00049314,120]
[357335904,1744008639636,-754.01503853,0.00049314,120]
[357335906,1744008639645,-754.01503853,0.00049314,120]
[357335908,1744008639654,-957.33048092,0.00049314,120]
[357335910,1744008639663,-754.01503853,0.00049314,120]
[357335912,1744008639674,-754.01503853,0.00049314,120]
[357335913,1744008639683,-957.33048092,0.00049314,120]
[357335915,1744008639692,-500.0,0.00049315,120]
[357335917,1744008639703,-500.0,0.00049315,120]
[357335919,1744008639718,-204.07538439,0.00049315,120]
[357335921,1744008639727,-541.48791433,0.00049315,120]
[357335924,1744008639738,-541.48791433,0.00049315,120]
[357335926,1744008639748,-541.48791433,0.00049315,120]
[357335928,1744008639758,-541.48791433,0.00049315,120]
[357335930,1744008639769,-541.48791433,0.00049315,120]
[357335931,1744008639780,-541.48791433,0.00049315,120]
[357335932,1744008639791,-541.48791433,0.00049315,120]
[357335933,1744008639803,-541.48791433,0.00049315,120]
[357335934,1744008639812,-541.48791433,0.00049315,120]
[357335935,1744008639823,-541.48791433,0.00049315,120]
[357335936,1744008639834,-541.48791433,0.00049315,120]
[357335937,1744008639844,-541.48791433,0.00049315,120]
[357335938,1744008639854,-541.48791433,0.00049315,120]
[357335939,1744008639864,-541.48791433,0.00049315,120]
[357335940,1744008639875,-541.48791433,0.00049315,120]
[357335941,1744008639885,-541.48791433,0.00049315,120]
[357335942,1744008639896,-541.48791433,0.00049315,120]
[357335943,1744008639906,-541.48791433,0.00049315,120]
[357335944,1744008639915,-541.48791433,0.00049315,120]
[357335945,1744008639925,-541.48791433,0.00049315,120]
[357335946,1744008639935,-541.48791433,0.00049315,120]
[357335947,1744008639945,-541.48791433,0.00049315,120]
[357335948,1744008639955,-541.48791433,0.00049315,120]
[357335949,1744008639969,-541.48791433,0.00049315,120]
[357335950,1744008639980,-541.48791433,0.00049315,120]
[357335951,1744008639990,-541.48791433,0.00049315,120]
[357335953,1744008640000,-541.48791433,0.00049315,120]
[357335955,1744008640010,-541.48791433,0.00049315,120]
[357335957,1744008640021,-541.48791433,0.00049315,120]
[357335959,1744008640032,-541.48791433,0.00049315,120]
[357335961,1744008640042,-541.48791433,0.00049315,120]
[357335963,1744008640052,-541.48791433,0.00049315,120]
[357335965,1744008640062,-541.48791433,0.00049315,120]
[357335967,1744008640075,-541.48791433,0.00049315,120]
[357335969,1744008640085,-541.48791433,0.00049315,120]
[357335971,1744008640095,-541.48791433,0.00049315,120]
[357335973,1744008640105,-541.48791433,0.00049315,120]
[357335975,1744008640115,-541.48791433,0.00049315,120]
[357335977,1744008640125,-541.48791433,0.00049315,120]
[357335979,1744008640136,-541.48791433,0.00049315,120]
[357335981,1744008640147,-541.48791433,0.00049315,120]
[357335983,1744008640157,-541.48791433,0.00049315,120]
[357335985,1744008640167,-541.48791433,0.00049315,120]
[357335987,1744008640177,-541.48791433,0.00049315,120]
[357335989,1744008640187,-541.48791433,0.00049315,120]
[357335991,1744008640197,-541.48791433,0.00049315,120]
[357335993,1744008640207,-541.48791433,0.00049315,120]
[357335995,1744008640222,-541.48791433,0.00049315,120]
[357335997,1744008640232,-541.48791433,0.00049315,120]
[357335999,1744008640242,-541.48791433,0.00049315,120]
[357336001,1744008640252,-541.48791433,0.00049315,120]
[357336003,1744008640262,-541.48791433,0.00049315,120]
[357336005,1744008640272,-541.48791433,0.00049315,120]
[357336007,1744008640282,-541.48791433,0.00049315,120]
[357336009,1744008640292,-541.48791433,0.00049315,120]
[357336011,1744008640302,-541.48791433,0.00049315,120]
[357336013,1744008640311,-541.48791433,0.00049315,120]
[357336015,1744008640320,-541.48791433,0.00049315,120]
[357336017,1744008640330,-541.48791433,0.00049315,120]
[357336019,1744008640340,-541.48791433,0.00049315,120]
[357336021,1744008640350,-541.48791433,0.00049315,120]
[357336023,1744008640359,-541.48791433,0.00049315,120]
[357336025,1744008640369,-541.48791433,0.00049315,120]
[357336027,1744008640379,-541.48791433,0.00049315,120]
[357336029,1744008640389,-541.48791433,0.00049315,120]
[357336031,1744008640399,-541.48791433,0.00049315,120]
[357336033,1744008640408,-541.48791433,0.00049315,120]
[357336035,1744008640418,-541.48791433,0.00049315,120]
[357336037,1744008640428,-541.48791433,0.00049315,120]
[357336039,1744008640438,-541.48791433,0.00049315,120]
[357336041,1744008640448,-541.48791433,0.00049315,120]
[357336044,1744008640458,-541.48791433,0.00049315,120]
[357336046,1744008640472,-541.48791433,0.00049315,120]
[357336048,1744008640482,-541.48791433,0.00049315,120]
[357336049,1744008640493,-541.48791433,0.00049315,120]
[357336051,1744008640504,-527.9507165,0.00049315,120]
[357336053,1744008640514,-527.9507165,0.00049315,120]
[357336056,1744008640524,-527.9507165,0.00049315,120]
[357336058,1744008640534,-527.9507165,0.00049315,120]
[357336060,1744008640544,-527.9507165,0.00049315,120]
[357336062,1744008640554,-527.9507165,0.00049315,120]
[357336063,1744008640563,-527.9507165,0.00049315,120]
[357336065,1744008640573,-527.9507165,0.00049315,120]
[357336068,1744008640583,-527.9507165,0.00049315,120]
[357336070,1744008640592,-527.9507165,0.00049315,120]
[357336072,1744008640602,-527.9507165,0.00049315,120]
[357336074,1744008640612,-527.95071645,0.00049315,120]
[357336076,1744008640622,-1471.22,0.00049315,60]
[357336078,1744008640632,-506.94451099,0.00049373,10]
[357336080,1744008640642,-826.0,0.000498,120]
[357336082,1744008640652,-150.0,0.00049869,120]
[357336084,1744008640662,-3206.31681342,0.0004999,4]
[357336086,1744008640673,-500.0,0.0005,30]
[357336088,1744008640683,-265.0,0.0005,30]
[357336090,1744008640694,-239.5625409,0.0005,51]
[357336092,1744008640704,-163.74404194,0.0005,88]
[357336094,1744008640718,-810.269,0.0005,88]
[357336096,1744008640728,-233.79,0.0005,120]
[357336098,1744008640738,-196.1,0.00050036,2]
[357336100,1744008640748,-168.70057049,0.00050244,7]
[357336102,1744008640758,-300.0,0.00051,120]
[357336104,1744008640768,-150.0,0.000511,2]
[357336106,1744008640778,-150.0,0.00051239,120]
[357336108,1744008640789,-448.58491919,0.00052408,120]
[357336110,1744008640799,-150.0,0.00052609,120]
[357336112,1744008640808,-8185.57701465,0.00053,16]
[357336114,1744008640818,-750.0,0.00053,54]
[357336116,1744008640828,-307.82,0.00053114,120]
[357336118,1744008640838,-500.0,0.00053424,30]
[357336120,1744008640848,-150.0,0.00053978,120]
[357336122,1744008640858,-1273.95,0.00054231,120]
[357336124,1744008640868,-184.0,0.0005437,120]
[357336126,1744008640878,-3206.31681342,0.00054785,4]
[357336128,1744008640888,-316.54861305,0.00054794,120]
[357336130,1744008640898,-500.0,0.00054795,120]
[357336132,1744008640908,-500.0,0.00054795,120]
[357336134,1744008640922,-618.75705199,0.00054795,120]
[357336136,1744008640932,-179.86189466,0.00054795,120]
[357336138,1744008640941,-184.09908444,0.000548,120]
[357336140,1744008640950,-1000.0,0.00055269,120]
[357336142,1744008640966,-195.69,0.00055269,5]
[357336145,1744008640976,-150.0,0.00055348,120]
[357336146,1744008640985,-196.1,0.00055833,120]
[357336148,1744008640995,-3206.31681342,0.00056412,4]
[357336149,1744008641004,-2304.47939211,0.00056422,120]
[357336151,1744008641014,-1410.07264607,0.00056601,28]
[357336153,1744008641024,-19237.9008805,0.00056702,4]
[357336155,1744008641034,-1720.35441178,0.00056711,2]
[357336157,1744008641046,-23900.0,0.00056712,2]
[357336159,1744008641063,-226.483785,0.00056718,120]
[357336161,1744008641073,-12500.0,0.00056791,16]
[357336163,1744008641085,-12500.0,0.000568,16]
[357336165,1744008641095,-250.0,0.00057,58]
[357336167,1744008641106,-307.82,0.00057592,120]
[357336169,1744008641115,-610.0,0.00057841,120]
[357336171,1744008641126,-9618.95044026,0.0005899,4]
[357336173,1744008641136,-12957.62,0.00059,120]
[357336175,1744008641146,-250.0,0.00059,60]
[357336177,1744008641156,-1273.95,0.00059161,120]
[357336179,1744008641166,-3206.31681342,0.00059375,5]
[357336181,1744008641178,-810.95,0.00059385,2]
[357336183,1744008641188,-4301.86758861,0.00059552,15]
[357336185,1744008641198,-220.16,0.00059992,120]
[357336187,1744008641208,-3213.0,0.0006,120]
[357336189,1744008641225,-176.99,0.00060445,2]
[357336191,1744008641235,-163.16,0.000607,7]
[357336193,1744008641245,-196.1,0.00061629,120]
[357336195,1744008641255,-307.82,0.00062071,120]
[357336197,1744008641265,-3206.31681342,0.00062168,5]
[357336199,1744008641275,-1000.0,0.00062177,120]
[357336201,1744008641286,-800.0,0.00062876,120]
[357336203,1744008641296,-800.0,0.0006315,120]
[357336205,1744008641306,-800.0,0.00063424,120]
[357336207,1744008641316,-800.0,0.00063698,120]
[357336209,1744008641325,-500.0,0.00063972,120]
[357336211,1744008641335,-500.0,0.00064246,120]
[357336213,1744008641345,-800.0,0.00064246,120]
[357336215,1744008641354,-500.0,0.0006452,120]
[357336217,1744008641364,-500.0,0.00064794,120]
[357336219,1744008641373,-800.0,0.00064794,120]
[357336221,1744008641383,-810.269,0.00065,120]
[357336223,1744008641393,-3206.31681342,0.00065332,5]
[357336225,1744008641403,-500.0,0.00065342,120]
[357336227,1744008641412,-800.0,0.00065342,120]
[357336229,1744008641422,-19237.9008805,0.00065649,5]
[357336231,1744008641431,-25260.13338296,0.00065659,15]
[357336233,1744008641440,-151.34,0.00065739,120]
[357336235,1744008641450,-22444.2176939,0.00065749,5]
[357336237,1744008641459,-348.0,0.00065753,60]
[357336239,1744008641472,-300.0,0.00065753,45]
[357336242,1744008641483,-300.0,0.00065753,45]
[357336244,1744008641492,-500.0,0.0006589,120]
[357336246,1744008641502,-800.0,0.0006589,120]
[357336248,1744008641512,-500.0,0.00066164,120]
[357336250,1744008641521,-3206.31681342,0.00066428,5]
[357336252,1744008641531,-500.0,0.00066438,120]
[357336254,1744008641540,-800.0,0.00066438,120]
[357336256,1744008641550,-307.82,0.00066549,120]
[357336258,1744008641559,-500.0,0.00066712,120]
[357336260,1744008641568,-500.0,0.00066986,120]
[357336262,1744008641578,-800.0,0.00066986,120]
[357336264,1744008641587,-500.0,0.0006726,120]
[357336266,1744008641597,-196.1,0.00067426,120]
[357336268,1744008641607,-500.0,0.00067534,120]
[357336270,1744008641616,-800.0,0.00067534,120]
[357336272,1744008641626,-842.5043945,0.00067612,120]
[357336273,1744008641635,-500.0,0.00067808,120]
[357336275,1744008641645,-500.0,0.00068082,120]
[357336278,1744008641654,-800.0,0.00068082,120]
[357336280,1744008641663,-500.0,0.00068356,120]
[357336281,1744008641673,-500.0,0.0006863,120]
[357336283,1744008641683,-731.54943599,0.0006863,120]
[357336286,1744008641693,-1999.999994,0.00068888,120]
[357336287,1744008641703,-3206.31681342,0.00068894,5]
[357336289,1744008641716,-500.0,0.00068904,120]
[357336291,1744008641727,-1000.0,0.00069086,120]
[357336293,1744008641736,-616.45863404,0.00069178,120]
[357336295,1744008641745,-158.58,0.00069373,120]
[357336297,1744008641755,-500.0,0.00069452,120]
[357336299,1744008641764,-157.4,0.00069722,2]
[357336301,1744008641774,-157.4,0.0006974,2]
[357336303,1744008641784,-157.4,0.00069759,2]
[357336305,1744008641793,-157.4,0.00069777,2]
[357336307,1744008641803,-157.4,0.00069795,2]
[357336309,1744008641812,-157.4,0.00069814,2]
[357336311,1744008641822,-157.4,0.00069832,2]
[357336313,1744008641832,-157.4,0.00069851,2]
[357336315,1744008641841,-157.4,0.00069869,2]
[357336317,1744008641850,-157.4,0.00069887,2]
[357336319,1744008641860,-157.4,0.00069906,2]
[357336321,1744008641870,-157.4,0.00069924,2]
[357336323,1744008641879,-157.4,0.00069942,2]
[357336325,1744008641889,-157.4,0.00069961,2]
[357336326,1744008641899,-157.4,0.00069979,2]
[357336328,1744008641910,-3206.31681342,0.0006999,5]
[357336330,1744008641920,-157.4,0.00069997,2]
[357336332,1744008641929,-500.0,0.0007,120]
[357336334,1744008641939,-2000.0,0.0007,120]
[357336336,1744008641948,-500.0,0.0007,120]
[357336338,1744008641958,-500.0,0.0007,120]
[357336340,1744008641973,-157.4,0.00070016,2]
[357336342,1744008641983,-157.4,0.00070034,2]
[357336344,1744008641993,-157.4,0.00070052,2]
[357336346,1744008642003,-157.4,0.00070071,2]
[357336348,1744008642012,-574.70363844,0.00070548,120]
[357336350,1744008642023,-173.53,0.00070865,2]
[357336352,1744008642033,-307.82,0.00071027,120]
[357336354,1744008642044,-3206.31681342,0.00071335,6]
[357336356,1744008642059,-974.63140338,0.00071345,120]
[357336358,1744008642069,-151.0,0.00071781,120]
[357336360,1744008642079,-200.0,0.00071838,7]
[357336362,1744008642089,-158.58,0.00072894,120]
[357336364,1744008642101,-196.1,0.00073223,120]
[357336366,1744008642112,-3206.31681342,0.0007447,6]
[357336368,1744008642125,-2857.61451348,0.0007448,120]
[357336370,1744008642135,-307.82,0.00075505,120]
[357336372,1744008642146,-230.72,0.000759,14]
[357336374,1744008642156,-1000.0,0.00075995,120]
[357336376,1744008642165,-4301.86758861,0.0007609,15]
[357336378,1744008642175,-158.58,0.00076415,120]
[357336380,1744008642185,-6412.63362684,0.00078061,6]
[357336382,1744008642195,-8402.87019244,0.00078071,45]
[357336384,1744008642205,-9618.95044026,0.0007899,6]
[357336386,1744008642217,-12957.62,0.00079,120]
[357336388,1744008642227,-196.1,0.00079019,120]
[357336390,1744008642237,-158.58,0.00079936,120]
[357336392,1744008642247,-307.82,0.00079984,120]
[357336394,1744008642256,-810.269,0.0008,120]
[357336396,1744008642266,-180.84,0.00081767,2]
[357336397,1744008642276,-3206.31681342,0.0008219,6]
[357336400,1744008642287,-3379.80267533,0.000822,120]
[357336402,1744008642298,-250.0,0.00082391,120]
[357336404,1744008642313,-1000.0,0.00082903,120]
[357336406,1744008642323,-158.58,0.00083457,120]
[357336408,1744008642334,-307.82,0.00084462,120]
[357336410,1744008642344,-196.1,0.00084816,120]
[357336412,1744008642354,-3206.31681342,0.00085702,7]
[357336414,1744008642364,-158.58,0.00086978,120]
[357336417,1744008642374,-307.82,0.0008894,120]
[357336420,1744008642384,-181.43381984,0.000899,120]
[357336423,1744008642395,-180.84,0.00089944,120]
[357336426,1744008642404,-150.0,0.0009,120]
[357336428,1744008642414,-158.58,0.00090499,120]
[357336430,1744008642424,-196.1,0.00090613,120]
[357336432,1744008642434,-200.0,0.00091872,120]
[357336434,1744008642444,-212.35,0.0009197,120]
[357336436,1744008642454,-150.5,0.0009198,120]
[357336438,1744008642468,-154.83,0.0009199,120]
[357336479,1744008642676,-150.5,0.0009199,120]
[357336482,1744008642688,-173.53,0.00092371,2]
[357336485,1744008642699,-4301.86758861,0.00092627,15]
[357336488,1744008642709,-374.61,0.00093392,30]
[357336493,1744008642730,-158.58,0.0009402,120]
[357336495,1744008642741,-810.269,0.00095,120]
[357336497,1744008642750,-196.1,0.0009641,120]
[357336499,1744008642760,-463.39833115,0.00096795,120]
[357336501,1744008642770,-3206.31681342,0.00096834,8]
[357336503,1744008642780,-151.0,0.00096844,30]
[357336505,1744008642790,-158.58,0.00097541,120]
[357336507,1744008642801,-151.0,0.0009783,2]
[357336509,1744008642811,-500.0,0.00097889,120]
[357336511,1744008642822,-1000.0,0.00097889,2]
[357336513,1744008642832,-1000.0,0.00097889,2]
[357336515,1744008642842,-1000.0,0.00097889,2]
[357336517,1744008642852,-1000.0,0.00097889,2]
[357336519,1744008642862,-1000.0,0.00097889,2]
[357336521,1744008642871,-1000.0,0.00097889,2]
[357336523,1744008642881,-1000.0,0.00097889,2]
[357336525,1744008642891,-1000.0,0.00097889,2]
[357336527,1744008642901,-1105.57863018,0.00097889,2]
[357336529,1744008642911,-666.0,0.00097889,120]
[357336531,1744008642921,-666.0,0.00097889,120]
[357336533,1744008642931,-666.0,0.00097889,120]
[357336535,1744008642940,-666.0,0.00097889,120]
[357336537,1744008642949,-666.0,0.00097889,120]
[357336539,1744008642959,-666.0,0.00097889,120]
[357336540,1744008642974,-666.0,0.00097889,120]
[357336542,1744008642983,-666.0,0.00097889,120]
[357336544,1744008642993,-666.0,0.00097889,120]
[357336546,1744008643003,-666.0,0.00097889,120]
[357336548,1744008643013,-666.0,0.00097889,120]
[357336550,1744008643022,-666.0,0.00097889,120]
[357336552,1744008643032,-666.0,0.00097889,120]
[357336554,1744008643042,-666.0,0.00097889,120]
[357336557,1744008643054,-666.0,0.00097889,120]
[357336558,1744008643064,-666.0,0.00097889,120]
[357336559,1744008643078,-666.0,0.00097889,120]
[357336560,1744008643088,-666.0,0.00097889,120]
[357336562,1744008643098,-666.0,0.00097889,120]
[357336564,1744008643108,-666.0,0.00097889,120]
[357336566,1744008643118,-666.0,0.00097889,120]
[357336568,1744008643128,-666.0,0.00097889,120]
[357336570,1744008643138,-666.0,0.00097889,120]
[357336572,1744008643148,-544.08256958,0.00097889,120]
[357336574,1744008643157,-1505.61,0.00097889,120]
[357336576,1744008643168,-12957.62,0.000979,120]
[357336578,1744008643178,-1505.61,0.00097917,120]
[357336580,1744008643188,-1505.61,0.00097944,120]
[357336582,1744008643197,-1505.61,0.00097972,120]
[357336584,1744008643207,-1505.61,0.00097999,120]
[357336586,1744008643223,-1505.61,0.00098026,120]
[357336588,1744008643233,-1505.61,0.00098054,120]
[357336590,1744008643244,-1505.61,0.00098081,120]
[357336592,1744008643254,-151.0,0.00098104,30]
[357336594,1744008643263,-1505.61,0.00098109,120]
[357336596,1744008643273,-180.84,0.00098121,120]
[357336598,1744008643282,-1505.61,0.00098136,120]
[357336600,1744008643293,-1505.61,0.00098163,120]
[357336602,1744008643303,-1505.61,0.00098191,120]
[357336604,1744008643312,-1505.61,0.00098218,120]
[357336606,1744008643323,-1505.61,0.00098246,120]
[357336608,1744008643333,-1505.61,0.00098273,120]
[357336610,1744008643343,-1505.61,0.000983,120]
[357336612,1744008643353,-1505.61,0.00098328,120]
[357336614,1744008643363,-1505.61,0.00098355,120]
[357336616,1744008643373,-1505.61,0.00098383,120]
[357336617,1744008643384,-1505.61,0.0009841,120]
[357336618,1744008643394,-500.0,0.00098437,120]
[357336620,1744008643404,-1505.61,0.00098437,120]
[357336621,1744008643414,-299.75360833,0.0009846,30]
[357336623,1744008643424,-1505.61,0.00098465,120]
[357336625,1744008643434,-1505.61,0.00098492,120]
[357336627,1744008643443,-1505.63114153,0.0009852,120]
[357336628,1744008643452,-151.0,0.00098548,120]
[357336629,1744008643468,-500.0,0.00098985,120]
[357336630,1744008643479,-233.30568632,0.00099533,120]
[357336631,1744008643489,-1000.0,0.001,2]
[357336632,1744008643499,-500.0,0.00100212,120]
[357336633,1744008643509,-8808.71697648,0.00101031,8]
[357336634,1744008643518,-18304.0,0.00101041,120]
[357336635,1744008643528,-15183.0,0.00101041,120]
[357336636,1744008643538,-158.58,0.00101062,120]
[357336637,1744008643548,-297.87200981,0.00101488,96]
[357336638,1744008643558,-13213.0754647,0.00101579,8]
[357336639,1744008643569,-436.6934702,0.00101588,120]
[357336640,1744008643579,-29601.0,0.00101589,120]